bitfinex-derivatives/quotes_BNBF0:USTF0_20250521
["timestamp","ask_amount","ask_price","bid_price","bid_amount"]
[1747800111666,3.81099221,658.75,656.39,0.29042344]
[1747800111866,3.81099221,658.75,656.4,0.6169671]
[1747800112161,3.81099221,658.75,656.41,1.74030397]
[1747800112362,3.81099221,658.75,656.42,0.6169671]
[1747800112566,3.81099221,658.75,656.43,2.04473872]
[1747800112767,3.81099221,658.75,656.44,0.6169671]
[1747800113067,3.81099221,658.75,656.45,1.74030397]
[1747800113267,3.81099221,658.75,656.46,0.6169671]
[1747800113464,3.81099221,658.75,656.47,1.74030397]
[1747800113667,3.81099221,658.75,656.48,0.6169671]
[1747800113967,3.81099221,658.75,656.49,0.6169671]
[1747800114165,3.81099221,658.75,656.5,0.6169671]
[1747800114466,3.81099221,658.75,656.51,1.74030397]
[1747800114666,3.81099221,658.75,656.52,1.74030397]
[1747800114866,3.81099221,658.75,656.53,0.6169671]
[1747800115063,3.81099221,658.75,656.54,0.6169671]
[1747800115267,3.81099221,658.75,656.55,0.6169671]
[1747800115465,3.81099221,658.75,656.56,0.6169671]
[1747800115662,3.81099221,658.75,656.57,0.6169671]
[1747800115862,3.81099221,658.75,656.58,1.74030397]
[1747800116062,3.81099221,658.75,656.59,0.6169671]
[1747800116260,3.81099221,658.75,656.6,0.6169671]
[1747800116463,3.81099221,658.75,656.56,0.30443475]
[1747800116464,3.81099221,658.75,656.61,1.74030397]
[1747800116667,3.81099221,658.75,656.62,0.61867663]
[1747800116866,3.81099221,658.75,656.63,1.7420135]
[1747800117061,3.81099221,658.75,656.64,1.7420135]
[1747800117262,3.81099221,658.75,656.65,0.61867663]
[1747800117462,3.81099221,658.75,656.64,1.12333687]
[1747800117463,3.81099221,658.54,656.66,0.61867663]
[1747800117662,3.81099221,658.54,656.67,1.7420135]
[1747800117862,3.81099221,658.54,656.68,0.61867663]
[1747800118067,3.81099221,658.54,656.69,0.61867663]
[1747800118363,3.81099221,658.54,656.7,1.7420135]
[1747800118567,3.81099221,658.54,656.71,0.61867663]
[1747800118767,3.81099221,658.54,656.72,0.61867663]
[1747800118964,3.81099221,658.54,656.73,0.61867663]
[1747800119167,1.518,658.53,656.74,0.61867663]
[1747800119369,1.518,658.53,656.75,1.7420135]
[1747800119669,1.518,658.53,656.76,1.7420135]
[1747800119868,1.518,658.53,656.77,0.61867663]
[1747800120068,1.518,658.53,656.78,0.61867663]
[1747800120270,0.26467099,658.52,656.79,0.61867663]
[1747800120465,0.26467099,658.52,656.8,0.61867663]
[1747800120668,0.26467099,658.52,656.81,0.61867663]
[1747800120868,0.26467099,658.52,656.82,0.61867663]
[1747800121070,0.26467099,658.52,656.83,0.61867663]
[1747800121270,0.26467099,658.52,656.78,0.30443475]
[1747800121470,0.26467099,658.52,656.79,0.61941622]
[1747800121773,0.26467099,658.52,656.8,0.61941622]
[1747800121973,0.26467099,658.52,656.81,0.61941622]
[1747800122271,0.26467099,658.52,656.82,0.61941622]
[1747800122472,0.26467099,658.52,656.83,0.61941622]
[1747800122667,0.26467099,658.52,656.84,0.61941622]
[1747800122871,0.26467099,658.52,656.85,0.61941622]
[1747800123074,1.518,658.53,656.86,0.61941622]
[1747800123268,1.518,658.53,656.87,0.62005348]
[1747800123467,1.518,658.53,656.8,0.30443475]
[1747800123667,1.518,658.53,656.81,0.62009113]
[1747800123871,1.518,658.53,656.82,0.62009113]
[1747800124073,1.518,658.53,656.83,0.62009113]
[1747800124270,1.518,658.53,656.84,0.62009113]
[1747800124473,0.26465488,658.52,656.85,0.62009113]
[1747800124676,0.26465488,658.52,656.86,0.62059308]
[1747800124874,0.26465488,658.52,656.87,0.62059308]
[1747800125174,0.26465488,658.52,656.88,0.62059308]
[1747800125469,0.26465488,658.52,656.53,0.29042344]
[1747800125470,0.26465488,658.52,656.89,0.62059308]
[1747800125674,0.26465488,658.52,656.9,0.62059308]
[1747800125874,0.26465488,658.52,656.91,0.62059308]
[1747800126072,1.518,658.53,656.53,0.29042344]
[1747800126272,1.518,658.53,656.54,1.75175445]
[1747800126473,0.26464583,658.51,656.55,0.62136957]
[1747800126673,0.26464583,658.51,656.58,0.29042344]
[1747800126873,0.26464583,658.51,656.59,1.75222409]
[1747800127072,0.26464583,658.51,656.6,0.62136957]
[1747800127273,0.26464583,658.51,656.61,0.62136957]
[1747800127471,0.26464583,658.51,656.62,1.75222409]
[1747800127673,0.26464583,658.51,656.63,0.62136957]
[1747800127878,0.26464583,658.51,656.64,1.75222409]
[1747800128080,0.26464583,658.51,656.64,1.13085452]
[1747800128372,0.26464583,658.51,656.65,1.75245503]
[1747800128577,0.26464583,658.51,656.66,0.62160051]
[1747800128774,0.26464583,658.51,656.67,1.75245503]
[1747800128980,0.26464583,658.51,656.68,0.62160051]
[1747800129182,1.518,658.53,656.69,1.75245503]
[1747800129374,0.26466897,658.5,656.7,0.62160051]
[1747800129577,0.26466897,658.5,656.71,1.75245503]
[1747800129776,0.26466897,658.5,656.72,0.62160051]
[1747800129982,0.26466897,658.5,656.73,1.75273191]
[1747800130177,0.26466897,658.5,656.74,0.62187739]
[1747800130378,0.26466897,658.5,656.75,0.62187739]
[1747800130579,0.26466897,658.5,656.76,0.62187739]
[1747800130880,0.26466897,658.5,656.77,1.75273191]
[1747800131083,0.26466897,658.5,656.78,1.75273191]
[1747800131277,0.26466897,658.5,656.79,0.92628229]
[1747800131478,0.26466897,658.5,656.8,0.62187739]
[1747800131676,0.26466897,658.5,656.81,0.62187739]
[1747800131881,0.26466897,658.5,656.82,1.75273191]
[1747800132182,1.518,658.53,656.83,1.75273191]
[1747800132377,0.2646247,658.49,656.84,0.62187739]
[1747800132578,0.2646247,658.49,656.85,1.75273191]
[1747800132778,0.2646247,658.49,656.86,0.62187739]
[1747800132983,0.2646247,658.49,656.87,0.62187739]
[1747800133186,0.2646247,658.49,656.88,1.75273191]
[1747800133386,0.2646247,658.49,656.89,0.62147768]
[1747800133581,0.2646247,658.49,656.9,0.62147768]
[1747800133786,0.2646247,658.49,656.91,1.7523322]
[1747800133987,0.2646247,658.49,656.92,0.62147768]
[1747800134188,0.2646247,658.49,656.93,1.7523322]
[1747800134386,0.2646247,658.49,656.94,0.92588258]
[1747800134685,0.2646247,658.49,656.95,1.7523322]
[1747800134887,0.2646247,658.49,656.96,1.7523322]
[1747800135089,1.518,658.53,656.96,1.13085452]
[1747800135387,0.26461061,658.48,656.97,0.62119108]
[1747800135584,0.26461061,658.48,656.98,0.62119108]
[1747800135785,0.26461061,658.48,656.99,0.62119108]
[1747800135981,0.26461061,658.48,657.0,1.74971737]
[1747800136185,0.26461061,658.48,657.01,0.62119108]
[1747800136483,0.26461061,658.48,657.02,0.62119108]
[1747800136682,0.26461061,658.48,657.03,0.62119108]
[1747800136884,0.26461061,658.48,657.04,0.62119108]
[1747800137188,0.26461061,658.48,657.05,0.62119108]
[1747800137386,0.26461061,658.48,657.06,0.92559598]
[1747800137588,0.26461061,658.48,657.07,0.62119108]
[1747800137789,0.26461061,658.48,657.08,0.62119108]
[1747800137988,0.26461061,658.48,657.09,0.62119108]
[1747800138186,0.26461061,658.48,657.1,0.62119108]
[1747800138386,0.26461061,658.48,657.06,0.3044049]
[1747800138690,0.26461061,658.48,657.11,0.3044049]
[1747800140289,0.26461061,658.48,656.83,0.29042344]
[1747800140493,0.26461061,658.48,656.84,0.62030535]
[1747800140793,0.26461061,658.48,656.85,1.74767377]
[1747800141094,1.518,658.53,656.86,0.62030535]
[1747800141391,1.518,658.53,656.87,0.62030535]
[1747800141585,1.518,658.53,656.88,1.74767377]
[1747800141790,1.518,658.53,656.89,0.62030535]
[1747800141992,1.518,658.53,656.9,0.62030535]
[1747800142186,1.518,658.53,656.91,0.62030535]
[1747800142390,0.26458043,658.52,656.92,1.74767377]
[1747800142591,0.26458043,658.52,656.93,0.62030535]
[1747800142892,0.26458043,658.52,656.94,0.92459816]
[1747800143093,0.26458043,658.52,656.95,0.62030535]
[1747800143394,0.26458043,658.52,656.96,1.74767377]
[1747800143591,0.26458043,658.52,656.97,1.74767377]
[1747800143792,0.26458043,658.52,656.98,0.61946869]
[1747800143991,0.26458043,658.52,656.99,1.74683711]
[1747800144292,1.518,658.53,657.0,0.61946869]
[1747800144494,1.518,658.53,657.01,1.74683711]
[1747800144692,1.518,658.53,657.02,0.61946869]
[1747800144893,1.518,658.53,657.03,1.74683711]
[1747800145095,1.518,658.53,657.04,0.61946869]
[1747800145395,1.518,658.53,657.05,0.61946869]
[1747800145589,1.518,658.53,657.06,1.74629132]
[1747800145790,1.518,658.53,657.07,0.6189229]
[1747800145991,1.518,658.53,657.08,1.74629132]
[1747800146194,1.518,658.53,657.09,0.6189229]
[1747800146396,1.518,658.53,657.1,1.74629132]
[1747800146593,1.518,658.53,657.11,0.6189229]
[1747800146791,1.518,658.53,657.12,0.6189229]
[1747800146989,1.518,658.53,657.13,0.6189229]
[1747800147193,1.518,658.53,657.14,0.6189229]
[1747800147394,1.518,658.53,657.15,0.6189229]
[1747800147596,1.518,658.53,657.16,0.6189229]
[1747800147792,1.518,658.53,657.17,0.6189229]
[1747800148095,1.518,658.53,657.18,0.6189229]
[1747800148296,1.518,658.53,657.19,0.6189229]
[1747800148596,1.518,658.53,657.13,0.30429281]
[1747800148797,1.518,658.53,657.14,0.61850926]
[1747800148993,1.518,658.53,657.15,0.6185068]
[1747800149191,1.518,658.53,657.16,0.6185068]
[1747800149395,0.26455328,658.54,657.17,0.6185068]
[1747800149593,0.26455328,658.54,657.18,0.6185068]
[1747800149801,0.26455328,658.54,657.19,0.6185068]
[1747800150099,0.26455328,658.54,657.14,0.30429281]
[1747800150299,3.81099221,658.57,657.15,0.61837287]
[1747800150497,3.81099221,658.57,657.16,0.61837287]
[1747800150698,3.81099221,658.57,657.17,0.61837287]
[1747800150898,3.81099221,658.57,657.18,0.61837287]
[1747800151198,3.81099221,658.57,657.19,0.61837287]
[1747800151502,0.26453418,658.56,657.16,0.30429281]
[1747800151703,0.26453418,658.56,657.17,0.61819209]
[1747800151902,0.26453418,658.56,657.18,0.61819209]
[1747800152103,1.281,658.55,657.19,0.61819209]
[1747800152402,1.281,658.55,656.91,0.29042344]
[1747800152603,1.281,658.55,656.92,0.61809984]
[1747800152803,1.281,658.55,656.93,0.61809984]
[1747800153106,1.281,658.55,656.94,1.74043593]
[1747800153305,1.281,658.55,656.95,1.74043593]
[1747800153507,1.281,658.55,656.96,0.61809984]
[1747800153703,1.281,658.55,656.97,0.61809984]
[1747800153901,1.281,658.55,656.98,0.61809984]
[1747800154098,1.281,658.55,656.99,0.61809984]
[1747800154404,1.281,658.55,657.0,0.6180665]
[1747800154600,1.281,658.55,657.01,1.74040259]
[1747800154800,1.281,658.55,657.02,0.6180665]
[1747800155007,1.281,658.55,657.03,1.74040259]
[1747800155204,1.281,658.55,657.04,0.6180665]
[1747800155501,1.281,658.55,657.05,1.74040259]
[1747800155702,1.281,658.55,657.06,0.6180665]
[1747800156004,1.281,658.55,657.07,0.61786267]
[1747800156206,1.281,658.55,657.08,0.61786267]
[1747800156406,0.26456133,658.54,657.09,0.61786267]
[1747800156601,0.26456133,658.54,657.1,1.74019876]
[1747800156801,0.26456133,658.54,657.11,0.61786267]
[1747800157103,0.26456133,658.54,657.12,0.61786267]
[1747800157301,0.26456133,658.54,657.13,0.61786267]
[1747800157502,0.26456133,658.54,657.14,0.61786267]
[1747800157700,0.26456133,658.54,657.15,0.61786267]
[1747800157904,0.26456133,658.54,657.16,0.61786267]
[1747800158099,0.26456133,658.54,657.17,0.61786267]
[1747800158305,0.26456133,658.54,657.18,0.61786267]
[1747800158503,0.26456133,658.54,657.19,0.61786267]
[1747800158703,0.26456133,658.54,656.87,0.29042344]
[1747800158905,0.26456133,658.54,656.88,1.74174637]
[1747800159104,1.281,658.55,656.89,0.61796448]
[1747800159305,1.281,658.55,656.9,0.9222134]
[1747800159505,0.26458043,658.53,656.91,1.74174637]
[1747800159707,0.26458043,658.53,656.92,1.74174637]
[1747800159905,0.26458043,658.53,656.93,0.61796448]
[1747800160100,0.26458043,658.53,656.94,0.61796448]
[1747800160308,0.26458043,658.53,656.95,1.74174637]
[1747800160510,0.26458043,658.53,656.96,0.9222134]
[1747800160705,0.26458043,658.53,656.97,0.61796448]
[1747800160912,0.26458043,658.53,656.98,0.61796448]
[1747800161210,0.26458043,658.53,656.99,1.74174637]
[1747800161412,0.26458043,658.53,657.0,0.61811271]
[1747800161608,0.26458043,658.53,657.01,0.61811271]
[1747800161805,0.26458043,658.53,657.02,1.7418946]
[1747800162004,0.26458043,658.53,657.03,1.7418946]
[1747800162204,1.281,658.55,657.04,0.61811271]
[1747800162408,1.281,658.55,657.05,0.61811271]
[1747800162606,1.281,658.55,657.06,0.61811271]
[1747800162804,1.281,658.55,657.07,0.61811271]
[1747800163008,1.281,658.55,657.08,0.61785895]
[1747800163208,1.281,658.55,657.09,0.61785895]
[1747800163408,1.281,658.55,657.1,0.61785895]
[1747800163606,1.281,658.55,657.11,1.74164084]
[1747800163811,1.281,658.55,657.12,0.61785895]
[1747800164010,1.281,658.55,657.13,0.61785895]
[1747800164210,1.281,658.55,657.14,1.74164084]
[1747800164512,1.281,658.55,657.15,2.03206428]
[1747800164714,1.281,658.55,657.16,0.61785895]
[1747800164913,1.281,658.55,657.17,0.61695327]
[1747800165108,1.281,658.55,657.18,1.74073516]
[1747800165308,1.281,658.55,657.19,0.61695327]
[1747800165509,1.281,658.55,657.2,1.74073516]
[1747800165709,1.281,658.55,657.21,0.61695327]
[1747800165912,1.281,658.55,657.22,2.04498408]
[1747800166212,1.281,658.55,657.23,0.61695327]
[1747800166414,1.281,658.55,657.24,0.61695327]
[1747800166611,1.281,658.55,657.25,0.61656631]
[1747800166816,1.281,658.55,657.26,0.61656631]
[1747800167113,1.281,658.55,657.27,0.61656631]
[1747800167313,1.281,658.55,657.28,0.61666218]
[1747800167509,1.281,658.55,657.29,1.74044407]
[1747800167714,1.281,658.55,657.3,0.61666218]
[1747800167910,1.281,658.55,657.31,0.61666218]
[1747800168214,1.281,658.55,657.32,1.74044407]
[1747800168413,1.281,658.55,657.33,0.61666218]
[1747800168610,1.281,658.55,657.34,1.74044407]
[1747800168811,1.281,658.55,657.35,0.61666218]
[1747800169011,1.281,658.55,657.36,0.61666218]
[1747800169216,1.281,658.55,657.34,1.12378189]
[1747800169217,1.281,658.55,657.37,0.61666218]
[1747800169412,1.281,658.55,657.38,0.9209111]
[1747800169616,1.281,658.55,657.39,1.74044407]
[1747800169816,1.281,658.55,657.4,1.74044407]
[1747800170014,1.281,658.55,657.41,0.61666218]
[1747800170210,1.281,658.55,657.42,1.74044407]
[1747800170412,1.281,658.55,657.43,0.61666218]
[1747800170612,1.281,658.55,657.44,0.61666218]
[1747800170814,1.281,658.55,657.45,0.61666218]
[1747800171015,1.281,658.55,657.46,0.61666218]
[1747800171216,1.281,658.55,657.38,0.30424892]
[1747800171514,1.281,658.55,657.47,0.30424892]
[1747800172112,1.281,658.55,657.48,0.61606439]
[1747800172314,1.281,658.55,657.47,0.30424892]
[1747800172514,1.281,658.55,657.48,0.61612222]
[1747800172718,1.281,658.55,657.47,0.30424892]
[1747800172915,1.281,658.55,657.48,0.61605558]
[1747800173119,1.281,658.55,657.13,0.29042344]
[1747800173316,1.281,658.55,657.14,0.61605558]
[1747800173517,1.281,658.55,657.15,0.6159916]
[1747800173713,1.281,658.55,657.16,1.73526493]
[1747800173919,1.281,658.55,657.17,0.6159916]
[1747800174123,1.281,658.55,657.18,1.73526493]
[1747800174320,1.281,658.55,657.19,0.6159916]
[1747800174521,1.281,658.55,657.2,0.6159916]
[1747800174724,1.281,658.55,657.21,0.6159916]
[1747800174923,1.281,658.55,657.22,0.6159916]
[1747800175121,1.281,658.55,657.23,1.73526493]
[1747800175317,1.281,658.55,657.24,0.6159916]
[1747800175520,1.281,658.55,657.25,1.73526493]
[1747800175721,1.281,658.55,657.26,0.92009708]
[1747800175923,1.281,658.55,657.27,0.6159916]
[1747800176125,1.281,658.55,657.28,1.73526493]
[1747800176324,1.281,658.55,657.29,0.6159916]
[1747800176521,1.281,658.55,657.3,0.6159916]
[1747800176725,1.281,658.55,657.31,1.73526493]
[1747800176922,1.281,658.55,657.32,0.6159916]
[1747800177121,1.281,658.55,657.33,0.6159916]
[1747800177326,1.281,658.55,657.34,1.73526493]
[1747800177527,1.281,658.55,657.35,0.6159916]
[1747800177727,1.281,658.55,657.36,1.73526493]
[1747800177923,1.281,658.55,657.37,1.73526493]
[1747800178120,1.281,658.55,657.38,0.6159916]
[1747800178320,1.281,658.55,657.39,0.6159916]
[1747800178525,1.281,658.55,657.4,1.73526493]
[1747800178720,1.281,658.55,657.41,0.61607042]
[1747800178926,1.281,658.55,657.42,0.61607042]
[1747800179125,1.281,658.55,657.43,1.73534375]
[1747800179325,1.281,658.55,657.44,0.61607042]
[1747800179523,1.281,658.55,657.45,2.03944923]
[1747800179723,1.281,658.55,657.46,0.61607042]
[1747800179923,1.281,658.55,657.47,0.61607042]
[1747800180127,1.281,658.55,657.48,0.61607042]
[1747800180328,1.281,658.55,657.49,0.61607042]
[1747800180529,1.281,658.55,657.5,1.73534375]
[1747800180729,1.281,658.55,657.51,0.61607042]
[1747800181024,1.281,658.55,657.52,1.73534375]
[1747800181224,1.281,658.55,657.53,0.61607042]
[1747800181431,1.281,658.55,657.54,0.61607042]
[1747800181630,1.281,658.55,657.55,0.61592092]
[1747800181825,1.281,658.55,657.56,0.61592092]
[1747800182031,1.281,658.55,657.52,0.30410548]
[1747800182329,0.26443267,658.89,657.52,0.30410548]
[1747800182629,0.26443267,658.89,657.53,0.30410548]
[1747800183732,0.26443267,658.89,657.54,0.6159558]
[1747800184029,0.26443267,658.89,657.53,0.30410548]
[1747800184227,3.81099221,659.18,657.54,0.92005451]
[1747800184425,0.26436035,659.03,657.55,1.7343951]
[1747800184627,0.26436035,659.03,657.56,0.61594903]
[1747800184827,3.81099221,659.18,657.57,0.61594903]
[1747800185030,0.26433625,659.03,657.58,0.61594903]
[1747800185230,0.26433625,659.03,657.59,0.61594903]
[1747800185432,3.81099221,659.18,657.6,0.92005451]
[1747800185632,0.26432622,659.07,657.61,0.61594903]
[1747800185836,3.81099221,659.18,657.62,0.61594903]
[1747800186032,1.379,659.06,657.63,0.61594903]
[1747800186237,1.379,659.06,657.6,0.30410548]
[1747800186437,1.379,659.06,657.61,0.61570817]
[1747800186637,1.379,659.06,657.62,0.61570817]
[1747800186831,1.379,659.06,657.63,0.61570817]
[1747800187036,1.379,659.06,657.6,0.30410548]
[1747800187237,1.379,659.06,657.61,0.61571006]
[1747800187437,1.379,659.06,657.63,0.30410548]
[1747800188938,1.379,659.06,657.64,0.30410548]
[1747800189438,0.26436537,659.05,657.64,0.30410548]
[1747800190439,0.26436537,659.05,657.65,0.30410548]
[1747800191539,0.26436537,659.05,657.66,0.30410548]
[1747800192240,1.379,659.06,657.66,0.30410548]
[1747800192439,1.64336035,659.06,657.66,0.30410548]
[1747800193240,1.64336035,659.06,657.67,0.30410548]
[1747800194235,1.64336035,659.06,657.4,0.26436035]
[1747800194441,1.64336035,659.06,657.41,0.61595932]
[1747800194632,1.64336035,659.06,657.42,1.73485217]
[1747800194836,1.64336035,659.06,657.43,0.61595932]
[1747800195036,1.64336035,659.06,657.44,1.73485217]
[1747800195236,1.64336035,659.06,657.45,0.61595932]
[1747800195440,1.64336035,659.06,657.46,1.73485217]
[1747800195641,1.64336035,659.06,657.47,0.61595932]
[1747800195841,1.64336035,659.06,657.48,0.61595932]
[1747800196046,1.64336035,659.06,657.49,1.73485217]
[1747800196341,1.64336035,659.06,657.5,1.73485217]
[1747800196541,1.64336035,659.06,657.51,1.73485217]
[1747800196747,1.64336035,659.06,657.52,0.61595932]
[1747800196947,1.64336035,659.06,657.53,0.61595932]
[1747800197147,1.64336035,659.06,657.54,0.61595932]
[1747800197348,1.64336035,659.06,657.55,1.73485217]
[1747800197549,1.64336035,659.06,657.56,0.61595932]
[1747800197744,1.64336035,659.06,657.57,0.61595932]
[1747800197944,1.64336035,659.06,657.58,0.61595932]
[1747800198149,1.379,659.06,657.59,0.61595932]
[1747800198448,1.379,659.06,657.6,1.73485217]
[1747800198649,0.26436035,659.05,657.61,0.61595932]
[1747800198948,0.26436035,659.05,657.62,0.61595932]
[1747800199252,0.26436035,659.05,657.63,0.61595932]
[1747800199451,0.26436035,659.05,657.64,0.61595932]
[1747800199653,0.26436035,659.05,657.65,0.61595932]
[1747800199845,0.26436035,659.05,657.66,0.61595932]
[1747800200045,0.26436035,659.05,657.35,0.26436035]
[1747800200250,0.26436035,659.05,657.36,1.73664533]
[1747800200447,0.26436035,659.05,657.37,0.61648296]
[1747800200650,0.26436035,659.05,657.38,0.61648296]
[1747800200848,0.26436035,659.05,657.39,0.92050213]
[1747800201153,1.379,659.06,657.4,0.61648296]
[1747800201353,1.379,659.06,657.41,1.73664533]
[1747800201554,0.26437943,659.04,657.42,0.61648296]
[1747800201853,0.26437943,659.04,657.41,1.12016237]
[1747800201854,0.26437943,659.04,657.43,1.73664533]
[1747800202049,0.26437943,659.04,657.44,1.73664533]
[1747800202254,0.26437943,659.04,657.45,0.61648296]
[1747800202454,0.26437943,659.04,657.46,0.61648296]
[1747800202656,0.26437943,659.04,657.47,1.73664533]
[1747800202853,0.26437943,659.04,657.48,1.73664533]
[1747800203151,0.26437943,659.04,657.49,0.61648296]
[1747800203353,0.26437943,659.04,657.5,1.73664533]
[1747800203553,0.26437943,659.04,657.51,1.73664533]
[1747800203755,0.26437943,659.04,657.52,0.61648296]
[1747800203950,0.26437943,659.04,657.53,0.61648296]
[1747800204154,1.379,659.06,657.54,0.61648296]
[1747800204355,1.379,659.06,657.55,0.61648296]
[1747800204553,1.379,659.06,657.56,0.61648296]
[1747800204851,1.379,659.06,657.57,0.61648296]
[1747800205050,1.379,659.06,657.58,0.61648296]
[1747800205251,1.379,659.06,657.59,0.61648296]
[1747800205457,0.26437441,659.05,657.6,0.61648296]
[1747800205664,0.26437441,659.05,657.56,0.30401917]
[1747800205862,0.26437441,659.05,657.57,0.61718976]
[1747800206156,0.26437441,659.05,657.58,0.61718976]
[1747800206360,0.26437441,659.05,657.59,0.61718976]
[1747800206562,0.26437441,659.05,657.6,0.61718976]
[1747800206762,0.26437441,659.05,657.61,0.61718976]
[1747800206957,0.26437441,659.05,657.57,0.30401917]
[1747800207157,1.379,659.06,657.58,0.61727825]
[1747800207361,1.379,659.06,657.59,0.61727825]
[1747800207558,0.2643965,659.04,657.6,0.61727825]
[1747800207760,0.2643965,659.04,657.61,0.61727825]
[1747800207964,0.2643965,659.04,657.57,0.30401917]
[1747800208164,0.2643965,659.04,657.58,0.61737922]
[1747800208365,0.2643965,659.04,657.59,0.61737922]
[1747800208565,0.2643965,659.04,657.6,0.61737922]
[1747800208762,0.2643965,659.04,657.61,0.61737922]
[1747800208963,0.2643965,659.04,657.29,0.2643965]
[1747800209262,0.2643965,659.04,657.3,0.61733194]
[1747800209464,0.2643965,659.04,657.31,0.61733194]
[1747800209660,0.2643965,659.04,657.32,1.73842274]
[1747800209864,0.2643965,659.04,657.33,0.61733194]
[1747800210163,3.81099221,659.45,657.34,0.61733194]
[1747800210366,3.81099221,659.45,657.35,1.73842274]
[1747800210565,0.26435433,659.03,657.36,0.61733194]
[1747800210766,3.81099221,659.45,657.37,0.61733194]
[1747800210961,3.81099221,659.45,657.38,0.61733194]
[1747800211162,3.81099221,659.45,657.39,0.61733194]
[1747800211365,3.81099221,659.45,657.4,0.61733194]
[1747800211566,0.26434931,659.44,657.41,0.61733194]
[1747800211767,0.26434931,659.44,657.42,0.61733194]
[1747800211965,1.229,659.43,657.43,1.73842274]
[1747800212167,1.229,659.43,657.44,1.73842274]
[1747800212368,1.229,659.43,657.45,0.61733194]
[1747800212566,1.229,659.43,657.46,1.73842274]
[1747800212768,1.229,659.43,657.47,0.61733194]
[1747800212969,1.229,659.43,657.48,0.61733194]
[1747800213172,1.229,659.43,657.49,1.73842274]
[1747800213372,1.229,659.43,657.5,0.61733194]
[1747800213566,0.26434127,659.42,657.51,0.61733194]
[1747800213771,0.26434127,659.42,657.52,1.73842274]
[1747800213973,0.26434127,659.42,657.53,0.92138741]
[1747800214173,0.26434127,659.42,657.54,0.61733194]
[1747800214372,0.26434127,659.42,657.55,1.73908374]
[1747800214574,0.26434127,659.42,657.56,1.73908374]
[1747800214872,0.26434127,659.42,657.57,1.73908374]
[1747800215070,0.26434127,659.42,657.58,0.61799294]
[1747800215270,0.26434127,659.42,657.59,0.61799294]
[1747800215466,3.81099221,659.36,657.6,1.73908374]
[1747800215666,3.81099221,659.36,657.61,0.61799294]
[1747800215866,3.81099221,659.36,657.62,0.61799294]
[1747800216067,3.81099221,659.36,657.63,0.61799294]
[1747800216273,3.81099221,659.36,657.64,0.61799294]
[1747800216474,0.26430915,659.35,657.65,1.73908374]
[1747800216674,0.26430915,659.35,657.66,0.61799294]
[1747800216874,0.26430915,659.35,657.67,0.61799294]
[1747800217070,0.26430915,659.35,657.68,0.61799294]
[1747800217274,0.26430915,659.35,657.69,0.61799294]
[1747800217470,0.26430915,659.35,657.7,0.61799294]
[1747800217673,0.26430915,659.35,657.71,0.61799294]
[1747800217967,0.26430915,659.35,657.72,0.61799294]
[1747800218167,0.26430915,659.35,657.73,0.61799294]
[1747800218369,0.26430915,659.35,657.74,0.61799294]
[1747800218572,0.26430915,659.35,657.75,0.61799294]
[1747800218772,0.26430915,659.35,657.69,0.30405547]
[1747800219173,3.81099221,659.36,657.7,0.92290714]
[1747800219368,3.81099221,659.36,657.71,0.61885167]
[1747800219574,0.26433425,659.34,657.72,0.61915293]
[1747800219870,0.26433425,659.34,657.73,0.61915293]
[1747800220073,0.26433425,659.34,657.74,0.61915293]
[1747800220271,0.26433425,659.34,657.75,0.61915293]
[1747800220573,0.26433425,659.34,657.76,0.61915293]
[1747800220772,0.26433425,659.34,657.77,0.61915293]
[1747800220971,0.26433425,659.34,657.78,0.61915293]
[1747800221171,0.26433425,659.34,657.79,0.61915293]
[1747800221373,0.26433425,659.34,657.42,0.29042344]
[1747800221575,0.26433425,659.34,657.43,0.61945442]
[1747800221771,0.26433425,659.34,657.44,1.74470908]
[1747800221970,0.26433425,659.34,657.45,0.61945442]
[1747800222275,3.81099221,659.36,657.46,0.61945442]
[1747800222476,0.26432722,659.33,657.47,1.74470908]
[1747800222775,0.26432722,659.33,657.48,1.74470908]
[1747800222971,0.26432722,659.33,657.49,0.6200172]
[1747800223174,0.26432722,659.33,657.49,0.30401446]
[1747800223372,0.26432722,659.33,657.5,1.74526868]
[1747800223571,0.26432722,659.33,657.51,0.62001402]
[1747800223771,0.26432722,659.33,657.52,0.62001402]
[1747800223972,0.26432722,659.33,657.53,2.04928314]
[1747800224171,0.26432722,659.33,657.54,0.62001402]
[1747800224376,0.26432722,659.33,657.55,1.74526868]
[1747800224674,0.26432722,659.33,657.56,1.74526868]
[1747800224875,0.26432722,659.33,657.57,0.62005093]
[1747800225176,3.81099221,659.36,657.58,2.04932005]